bitfinex/quotes_BTCUSD_20241226
["timestamp","ask_amount","ask_price","bid_price","bid_amount"]
[1735247302635,0.0001712,95538.0,95537.0,0.54322832]
[1735247303972,0.0001712,95538.0,95537.0,0.89062014]
[1735247304430,0.0001712,95538.0,95537.0,0.9034613]
[1735247304571,0.0001712,95538.0,95537.0,0.9094613]
[1735247304780,0.0011712,95538.0,95537.0,0.9094613]
[1735247305503,0.0001712,95538.0,95537.0,0.9034613]
[1735247305706,0.0021712,95538.0,95537.0,0.9144613]
[1735247305906,0.0021712,95538.0,95537.0,1.14958094]
[1735247306042,0.0011712,95538.0,95537.0,1.14358094]
[1735247306663,0.0011712,95538.0,95537.0,0.9084613]
[1735247307357,0.0011712,95538.0,95537.0,0.57457498]
[1735247307488,0.0011712,95538.0,95537.0,0.35839182]
[1735247307671,0.0021712,95538.0,95537.0,0.35839182]
[1735247308484,0.0021712,95538.0,95537.0,0.011]
[1735247310884,0.0011712,95538.0,95537.0,0.005]
[1735247311085,0.0011712,95538.0,95537.0,0.01]
[1735247311086,0.0021712,95538.0,95537.0,0.01]
[1735247311291,0.0011712,95538.0,95537.0,0.005]
[1735247311549,0.0011712,95538.0,95529.0,0.20936]
[1735247311710,0.0011712,95538.0,95537.0,0.005]
[1735247312114,0.0011712,95538.0,95537.0,0.002]
[1735247312542,0.0001712,95538.0,95528.0,0.30120482]
[1735247313106,0.0001712,95538.0,95528.0,0.09184282]
[1735247313921,0.0235859,95538.0,95528.0,0.09184282]
[1735247314337,0.0235859,95538.0,95528.0,0.30120282]
[1735247314537,0.0001712,95538.0,95528.0,0.30120282]
[1735247315416,0.0001712,95538.0,95528.0,0.09184282]
[1735247319022,0.0001712,95538.0,95528.0,0.01884282]
[1735247319435,0.0001712,95538.0,95528.0,0.22820482]
[1735247319811,0.0001712,95538.0,95528.0,0.01884282]
[1735247322095,0.0001712,95538.0,95528.0,0.22820482]
[1735247322644,0.0001712,95538.0,95528.0,0.01884282]
[1735247322869,0.0235859,95538.0,95526.0,0.209367]
[1735247323845,0.0235859,95538.0,95525.0,8.56e-05]
[1735247324055,0.0001712,95538.0,95535.0,0.209347]
[1735247324770,0.0001712,95538.0,95535.0,0.418694]
[1735247324987,0.0001712,95538.0,95537.0,0.209342]
[1735247325201,0.0021712,95538.0,95537.0,0.56332832]
[1735247325404,0.0001712,95542.0,95540.0,0.1]
[1735247325611,0.0001712,95542.0,95541.0,0.56332032]
[1735247325816,0.0001712,95567.0,95566.0,0.209279]
[1735247326017,0.00031751,95567.0,95566.0,0.209279]
[1735247326430,0.00031751,95567.0,95566.0,0.31326532]
[1735247327639,0.00031751,95567.0,95566.0,0.31626532]
[1735247328091,0.00131751,95567.0,95566.0,0.32126532]
[1735247328501,0.00131751,95567.0,95566.0,0.33707054]
[1735247328842,0.00131751,95567.0,95566.0,0.12779154]
[1735247329646,0.00131751,95567.0,95566.0,0.33707054]
[1735247333799,0.00131751,95567.0,95566.0,0.26407054]
[1735247336916,0.00131751,95567.0,95566.0,0.41407054]
[1735247338818,0.00131751,95567.0,95566.0,0.44505686]
[1735247339688,0.00131751,95567.0,95566.0,0.46089883]
[1735247340778,0.209225,95591.0,95578.0,0.209251]
[1735247341137,0.0211106,95584.0,95578.0,0.209251]
[1735247341337,0.000171,95584.0,95578.0,0.209251]
[1735247342731,0.0779,95583.0,95574.0,0.30110182]
[1735247342935,0.0779,95583.0,95575.0,0.209259]
[1735247343136,0.0779,95583.0,95579.0,0.209249]
[1735247343356,0.001171,95584.0,95583.0,0.209242]
[1735247343539,0.003171,95584.0,95583.0,0.209242]
[1735247343927,0.003171,95584.0,95581.0,0.209245]
[1735247343928,0.000171,95584.0,95581.0,0.209245]
[1735247344104,0.000171,95584.0,95575.0,0.209259]
[1735247344105,0.001,95583.0,95575.0,0.209259]
[1735247344247,0.002,95583.0,95580.0,0.209247]
[1735247344462,0.001,95583.0,95580.0,0.209247]
[1735247344688,0.000171,95584.0,95580.0,0.209247]
[1735247344889,0.002171,95584.0,95580.0,0.209247]
[1735247345274,0.000171,95584.0,95580.0,0.209247]
[1735247345577,0.001,95583.0,95580.0,0.211247]
[1735247345813,0.001,95583.0,95580.0,0.002]
[1735247346024,0.001,95583.0,95580.0,0.211248]
[1735247346604,0.001,95583.0,95580.0,0.420496]
[1735247346962,0.001,95583.0,95580.0,0.421496]
[1735247347164,0.000171,95584.0,95580.0,0.419496]
[1735247347573,0.000171,95584.0,95582.0,0.209244]
[1735247347574,0.001171,95584.0,95582.0,0.209244]
[1735247347774,0.000171,95584.0,95582.0,0.209244]
[1735247348216,0.001,95583.0,95582.0,0.359244]
[1735247348412,0.000171,95584.0,95582.0,0.46323032]
[1735247348582,0.000171,95584.0,95583.0,0.10398632]
[1735247348785,0.001171,95584.0,95582.0,0.360244]
[1735247349008,0.001171,95584.0,95582.0,0.46423032]
[1735247349998,0.000171,95584.0,95582.0,0.46423032]
[1735247350202,0.001171,95584.0,95583.0,0.001]
[1735247350450,0.000171,95584.0,95582.0,0.46423032]
[1735247350855,0.001171,95584.0,95582.0,0.46523032]
[1735247351062,0.000171,95584.0,95582.0,0.46323032]
[1735247351263,0.000171,95584.0,95583.0,0.001]
[1735247351458,0.001171,95584.0,95583.0,0.002]
[1735247351613,0.001171,95584.0,95583.0,0.001]
[1735247351809,0.002171,95584.0,95582.0,0.46423032]
[1735247352126,0.002171,95584.0,95583.0,0.45398632]
[1735247352553,0.000171,95594.0,95593.0,0.43442]
[1735247352753,0.000171,95594.0,95593.0,0.53840632]
[1735247353601,0.000171,95594.0,95593.0,0.5462237]
[1735247353818,0.000171,95594.0,95593.0,0.53840632]
[1735247354009,0.001171,95594.0,95593.0,0.54740632]
[1735247354360,0.001171,95594.0,95593.0,0.55523272]
[1735247354982,0.001171,95594.0,95593.0,0.48003272]
[1735247356315,0.000171,95614.0,95596.0,0.15]
[1735247356516,0.00068887,95614.0,95612.0,0.209178]
[1735247358898,0.00068887,95614.0,95608.0,0.209186]
[1735247359437,0.00068887,95614.0,95612.0,0.209178]
[1735247360763,0.00068887,95614.0,95612.0,0.210178]
[1735247361574,0.00068887,95614.0,95612.0,0.209178]
[1735247361827,0.00068887,95614.0,95612.0,0.210178]
[1735247362664,0.00068887,95614.0,95613.0,0.10398632]
[1735247363333,0.00168887,95614.0,95613.0,0.10398632]
[1735247364036,0.00268887,95614.0,95613.0,0.26298632]
[1735247364195,0.00068887,95614.0,95613.0,0.25398632]
[1735247364398,0.00268887,95614.0,95613.0,0.26398632]
[1735247365289,0.00168887,95614.0,95613.0,0.25698632]
[1735247365665,0.00168887,95614.0,95613.0,0.74250101]
[1735247366641,0.00268887,95614.0,95613.0,0.6106258]
[1735247368264,0.00268887,95614.0,95613.0,0.6930258]
[1735247368694,0.00268887,95614.0,95613.0,0.74143149]
[1735247368895,0.00268887,95614.0,95613.0,0.84541781]
[1735247369528,0.00268887,95614.0,95613.0,0.6106258]
[1735247369856,0.0001712,95634.0,95632.0,0.209133]
[1735247370209,0.00032646,95634.0,95632.0,0.209133]
[1735247371227,0.00032646,95634.0,95632.0,0.30265692]
[1735247371409,0.000171,95640.0,95632.0,0.30365692]
[1735247373274,0.000171,95640.0,95632.0,0.30265692]
[1735247373914,0.000171,95640.0,95632.0,0.09352392]
[1735247374336,0.000171,95640.0,95632.0,0.30265692]
[1735247374851,0.000171,95640.0,95632.0,0.210133]
[1735247375266,0.209126,95636.0,95632.0,0.001]
[1735247375472,0.023,95633.0,95632.0,0.001]
[1735247375681,0.12829351,95633.0,95632.0,0.001]
[1735247375893,0.12698632,95633.0,95632.0,0.001]
[1735247376091,0.12829353,95633.0,95632.0,0.001]
[1735247376828,0.209139,95630.0,95628.0,0.09352392]
[1735247377043,0.20916,95621.0,95607.0,0.09352392]
[1735247377269,0.0499,95620.0,95607.0,0.09352392]
[1735247377468,0.0499,95620.0,95607.0,0.09367918]
[1735247377673,0.0499,95620.0,95607.0,0.00015526]
[1735247377674,0.209165,95618.0,95607.0,0.00015526]
[1735247377876,0.0812,95617.0,95607.0,0.00015526]
[1735247378886,0.0812,95617.0,95604.0,0.09352392]
[1735247379118,0.08135506,95617.0,95604.0,0.09352392]
[1735247379539,0.08135506,95617.0,95603.0,0.09352392]
[1735247379743,0.08135506,95617.0,95604.0,0.209196]
[1735247383365,0.08135506,95617.0,95604.0,0.2092815]
[1735247384019,0.08135506,95617.0,95607.0,0.09184282]
[1735247384020,0.00015506,95617.0,95607.0,0.09184282]
[1735247384231,0.00015506,95617.0,95614.0,0.209174]
[1735247384430,0.00015506,95617.0,95614.0,0.31316032]
[1735247384635,0.00015506,95617.0,95614.0,0.209174]
[1735247385499,0.00015506,95617.0,95614.0,0.418348]
[1735247385701,0.00015506,95617.0,95610.0,0.209181]
[1735247386129,0.0786,95616.0,95604.0,8.55e-05]
[1735247386330,0.0786,95616.0,95614.0,0.003]
[1735247386688,0.0461,95615.0,95608.0,0.209186]
[1735247387092,0.0461,95615.0,95610.0,0.001]
[1735247387338,0.0461,95615.0,95614.0,0.006]
[1735247387524,0.0461,95615.0,95610.0,0.001]
[1735247388098,0.05858551,95615.0,95610.0,0.001]
[1735247388297,0.05858551,95615.0,95604.0,8.55e-05]
[1735247388499,0.05858551,95615.0,95608.0,0.001]
[1735247388726,0.05858551,95615.0,95614.0,0.002]
[1735247388931,0.0461,95615.0,95592.0,0.15]
[1735247389090,0.0461,95615.0,95603.0,0.209197]
[1735247389497,0.0461,95615.0,95603.0,0.418395]
[1735247390933,0.0461,95615.0,95603.0,0.419395]
[1735247391923,0.00130731,95614.0,95599.0,0.209205]
[1735247392092,0.04740736,95615.0,95603.0,0.001]
[1735247393059,0.04740736,95615.0,95603.0,0.002]
[1735247393260,0.04740736,95615.0,95603.0,0.001]
[1735247393411,0.0809399,95615.0,95603.0,0.002]
[1735247393613,0.00130736,95614.0,95603.0,0.002]
[1735247393934,0.00130736,95614.0,95599.0,0.418411]
[1735247395154,0.00130736,95614.0,95603.0,0.209197]
[1735247395550,0.00130736,95614.0,95607.0,0.209188]
[1735247395889,0.0461,95615.0,95607.0,0.209188]
[1735247396729,0.0461,95615.0,95603.0,0.2092826]
[1735247396730,0.01248551,95614.0,95603.0,0.2092826]
[1735247397248,0.01248551,95614.0,95607.0,0.002]
[1735247397455,0.01248551,95614.0,95603.0,0.2092826]
[1735247397617,0.0461,95615.0,95603.0,0.2092826]
[1735247397781,0.0461,95615.0,95607.0,0.002]
[1735247398001,0.0461,95615.0,95603.0,0.2092826]
[1735247398203,0.0461,95615.0,95607.0,0.001]
[1735247398442,0.0461,95615.0,95607.0,0.004]
[1735247398868,0.0461,95615.0,95607.0,0.003]
[1735247399068,0.0786,95616.0,95607.0,0.003]
[1735247399916,0.0786,95616.0,95607.0,0.004]
[1735247400120,0.00130733,95615.0,95607.0,0.004]
[1735247400325,0.00130733,95615.0,95607.0,0.001]
[1735247400525,0.00130733,95615.0,95607.0,0.003]
[1735247400526,0.209174,95614.0,95607.0,0.003]
[1735247400728,0.209178,95612.0,95607.0,0.003]
[1735247400858,0.05080743,95611.0,95607.0,0.001]
[1735247401059,0.04427268,95610.0,95607.0,0.001]
[1735247401263,0.04427268,95610.0,95607.0,0.002]
[1735247401264,0.00130743,95609.0,95607.0,0.002]
[1735247401458,0.00130743,95609.0,95603.0,8.56e-05]
[1735247401803,0.00130743,95609.0,95607.0,0.001]
[1735247402185,0.00130743,95609.0,95603.0,8.56e-05]
[1735247402385,0.05134361,95608.0,95607.0,0.001]
[1735247403026,0.05134361,95608.0,95603.0,8.56e-05]
[1735247403225,0.00130749,95607.0,95603.0,8.56e-05]
[1735247403545,0.001,95609.0,95603.0,8.56e-05]
[1735247403743,0.001,95609.0,95607.0,0.002]
[1735247403956,0.001,95609.0,95595.0,0.209215]
[1735247404117,0.01404074,95609.0,95594.0,8.55e-05]
[1735247404320,0.002,95608.0,95597.0,0.209209]
[1735247404543,0.01404074,95609.0,95597.0,0.209209]
[1735247404737,0.01404074,95609.0,95594.0,8.55e-05]
[1735247404962,0.00130742,95608.0,95594.0,8.55e-05]
[1735247405145,0.209199,95603.0,95594.0,8.55e-05]
[1735247405345,0.209202,95601.0,95594.0,8.55e-05]
[1735247405543,0.00130757,95600.0,95594.0,8.55e-05]
[1735247405723,0.00130758,95602.0,95594.0,8.55e-05]
[1735247406915,0.00130758,95602.0,95594.0,0.0010855]
[1735247407122,0.209202,95601.0,95594.0,8.55e-05]
[1735247407297,0.00130758,95600.0,95594.0,8.55e-05]
[1735247408459,0.00130758,95601.0,95594.0,8.55e-05]
[1735247408663,0.002,95600.0,95594.0,8.55e-05]
[1735247408861,0.00130758,95599.0,95581.0,0.09352392]
[1735247409087,0.00130758,95599.0,95583.0,0.209242]
[1735247409415,0.21051458,95599.0,95594.0,8.56e-05]
[1735247409609,0.00130758,95599.0,95594.0,8.56e-05]
[1735247410099,0.0773,95597.0,95594.0,8.56e-05]
[1735247410322,0.00130767,95596.0,95594.0,8.56e-05]
[1735247411417,0.00130767,95596.0,95594.0,0.0010856]
[1735247411623,0.00130767,95596.0,95594.0,8.56e-05]
[1735247411827,0.00130767,95596.0,95594.0,0.0010856]
[1735247412208,0.14958632,95595.0,95594.0,0.0010856]
[1735247412410,0.38180132,95595.0,95594.0,0.0010856]
[1735247412620,0.45910132,95595.0,95594.0,0.0010856]
[1735247413319,0.45910132,95595.0,95594.0,8.56e-05]
[1735247413320,0.70910132,95595.0,95594.0,8.56e-05]
[1735247413686,0.70910132,95595.0,95594.0,0.0010856]
[1735247414063,0.1267,95571.0,95562.0,0.02169502]
[1735247414277,0.00130802,95570.0,95555.0,0.209303]
[1735247414485,0.31325832,95569.0,95552.0,0.02169502]
[1735247414626,0.1267,95571.0,95552.0,0.02169502]
[1735247414828,0.00130803,95570.0,95553.0,0.209307]
[1735247415032,0.05596123,95570.0,95553.0,0.209307]
[1735247415235,0.05596123,95570.0,95553.0,0.20982487]
[1735247415553,0.209272,95569.0,95553.0,0.00051787]
[1735247415801,0.02430803,95568.0,95553.0,0.00051787]
[1735247416078,0.023,95566.0,95553.0,0.00051787]
[1735247416281,0.1267,95555.0,95553.0,0.00051787]
[1735247416485,0.33759961,95554.0,95553.0,0.00051787]
[1735247416685,0.33629132,95554.0,95553.0,0.00051787]
[1735247416887,0.41599132,95554.0,95553.0,0.00151787]
[1735247417326,0.41599132,95554.0,95553.0,0.00051787]
[1735247417529,0.48322055,95554.0,95553.0,0.00151787]
[1735247417751,0.48322055,95554.0,95553.0,0.00051787]
[1735247418013,0.48522055,95554.0,95553.0,0.00051787]
[1735247418223,0.48922055,95554.0,95553.0,0.00051787]
[1735247419470,0.51155134,95554.0,95553.0,0.00051787]
[1735247419828,0.53230694,95554.0,95553.0,0.00051787]
[1735247420034,0.66155134,95554.0,95553.0,0.00051787]
[1735247420242,0.82959641,95554.0,95553.0,0.00051787]
[1735247420438,0.92959641,95554.0,95553.0,0.00051787]
[1735247420615,0.209323,95546.0,95545.0,8.56e-05]
[1735247420819,0.69217342,95546.0,95545.0,0.00023191]
[1735247421027,0.79217342,95546.0,95545.0,0.00023191]
[1735247421733,0.89217342,95546.0,95545.0,0.00023191]
[1735247422339,0.209367,95526.0,95508.0,7.411e-05]
[1735247422549,0.12623172,95525.0,95508.0,7.411e-05]
[1735247422760,0.09184282,95520.0,95508.0,7.411e-05]
[1735247422966,0.10529515,95519.0,95508.0,7.411e-05]
[1735247423173,0.209398,95512.0,95508.0,7.411e-05]
[1735247423371,0.209402,95510.0,95508.0,7.411e-05]
[1735247423577,0.10529529,95509.0,95508.0,7.411e-05]
[1735247423781,0.209423,95501.0,95479.0,0.06763499]
[1735247424012,0.10529532,95500.0,95479.0,0.06763499]
[1735247424216,0.209426,95499.0,95479.0,0.06763499]
[1735247424420,0.10529541,95498.0,95479.0,0.06763499]
[1735247424706,0.08831923,95510.0,95480.0,0.09184282]
[1735247424909,0.10529523,95509.0,95481.0,0.209465]
[1735247425221,0.003,95500.0,95486.0,0.209452]
[1735247425626,0.003,95500.0,95490.0,0.18368564]
[1735247426048,0.003,95500.0,95490.0,0.09184282]
[1735247426182,0.001,95498.0,95490.0,0.09184282]
[1735247426769,0.001,95498.0,95490.0,0.11382784]
[1735247426971,0.00130892,95508.0,95490.0,0.11382784]
[1735247427216,0.002,95500.0,95498.0,0.09184282]
[1735247427462,0.002,95500.0,95490.0,0.11382784]
[1735247427661,0.002,95500.0,95490.0,0.09235981]
[1735247427865,0.002,95498.0,95490.0,0.09235981]
[1735247428067,0.00130897,95506.0,95490.0,0.00051699]
[1735247428248,0.003,95500.0,95496.0,0.09184282]
[1735247428448,0.003,95500.0,95490.0,0.09235981]
[1735247428652,0.003,95500.0,95490.0,0.18420263]
[1735247428941,0.006,95500.0,95490.0,0.11120263]
[1735247429179,0.001309,95499.0,95490.0,0.11120263]
[1735247429363,0.006,95500.0,95490.0,0.11120263]
[1735247429890,0.002,95500.0,95490.0,0.11120263]
[1735247430095,0.002,95500.0,95491.0,0.0778]
[1735247430347,0.0797,95523.0,95491.0,0.0778]
[1735247430496,0.0797,95523.0,95510.0,0.09184282]
[1735247430699,0.00130869,95522.0,95510.0,0.09184282]
[1735247430908,0.00130869,95522.0,95493.0,0.359439]
[1735247430909,0.10398632,95521.0,95500.0,0.09184282]
[1735247431131,0.00130881,95520.0,95510.0,0.09184282]
[1735247431335,0.10398632,95519.0,95510.0,0.09184282]
[1735247431537,0.009,95520.0,95510.0,0.09184282]
[1735247431737,0.00130878,95531.0,95509.0,0.16684282]
[1735247431914,0.10398632,95530.0,95521.0,0.09184282]
[1735247432113,0.01645812,95529.0,95521.0,0.09184282]
[1735247432328,0.10398632,95528.0,95510.0,0.09184282]
[1735247432534,0.10398632,95528.0,95518.0,0.09184282]
[1735247432535,0.00130866,95527.0,95518.0,0.09184282]
[1735247432848,0.10398632,95526.0,95518.0,0.09184282]
[1735247433048,0.12332518,95526.0,95518.0,0.09184282]
[1735247433259,0.00130865,95525.0,95518.0,0.09184282]
[1735247433756,0.005,95519.0,95518.0,0.09184282]
[1735247433989,0.005,95519.0,95518.0,8.56e-05]
[1735247434411,0.00130865,95525.0,95518.0,8.56e-05]
[1735247434827,0.00830865,95525.0,95518.0,8.56e-05]
[1735247435031,0.02510985,95525.0,95518.0,8.56e-05]
[1735247435166,0.002,95519.0,95518.0,8.56e-05]
[1735247435591,0.0852,95519.0,95518.0,8.56e-05]
[1735247436176,0.18918632,95519.0,95518.0,8.56e-05]
[1735247436990,0.18818632,95519.0,95518.0,8.56e-05]
[1735247437196,0.20718752,95519.0,95518.0,8.56e-05]
[1735247437820,0.20918752,95519.0,95518.0,8.56e-05]
[1735247438204,0.20618752,95519.0,95518.0,8.56e-05]
[1735247438437,0.20718752,95519.0,95518.0,8.56e-05]
[1735247438773,0.21318752,95519.0,95518.0,8.56e-05]
[1735247438923,0.21218752,95519.0,95509.0,0.18368564]
[1735247439123,0.12661387,95518.0,95509.0,0.18368564]
[1735247439345,0.0013088,95518.0,95509.0,0.18368564]
[1735247439544,0.009,95519.0,95509.0,0.18368564]
[1735247439752,0.10529498,95518.0,95509.0,0.18368564]
[1735247440745,0.00130866,95518.0,95509.0,0.18368564]
[1735247441060,0.009,95519.0,95510.0,0.209402]
[1735247441263,0.004,95518.0,95510.0,0.209402]
[1735247441463,0.00130866,95517.0,95509.0,0.18368564]
[1735247441669,0.006,95518.0,95509.0,0.18368564]
[1735247441873,0.009,95518.0,95509.0,0.18368564]
[1735247442071,0.007,95518.0,95509.0,0.18368564]
[1735247443111,0.00182576,95526.0,95509.0,0.18368564]
[1735247443112,0.00182576,95526.0,95509.0,0.09184282]
[1735247443316,0.1184176,95525.0,95516.0,0.09184282]
[1735247443542,0.10529502,95525.0,95516.0,0.09184282]
[1735247443950,0.001,95518.0,95516.0,0.01884282]
[1735247444774,0.002,95518.0,95516.0,0.01884282]
[1735247445161,0.001,95518.0,95516.0,0.01884282]
[1735247445616,0.002,95518.0,95516.0,0.01884282]
[1735247446084,0.0011714,95518.0,95516.0,0.01884282]
[1735247446329,0.0021714,95518.0,95516.0,0.01884282]
[1735247446531,0.0011714,95518.0,95516.0,0.01884282]
[1735247446730,0.0011714,95518.0,95508.0,0.18368564]
[1735247446910,0.0021714,95518.0,95508.0,0.09184282]
[1735247447949,0.0001714,95518.0,95508.0,0.09184282]
[1735247448146,0.0011714,95518.0,95508.0,0.18368564]
[1735247448305,0.2021714,95518.0,95516.0,0.15]
[1735247448737,0.2011714,95518.0,95517.0,0.15]
[1735247448890,0.2011714,95518.0,95513.0,0.209393]
[1735247449091,0.2021714,95518.0,95508.0,0.09184282]
[1735247449525,0.2011714,95518.0,95508.0,0.09184282]
[1735247449878,0.2021714,95518.0,95508.0,0.09184282]
[1735247450312,0.2001714,95518.0,95513.0,0.209395]
[1735247450512,0.000517,95526.0,95513.0,0.209395]
[1735247450629,0.10450332,95526.0,95513.0,0.209395]
[1735247450822,0.00130867,95525.0,95513.0,0.209395]
[1735247451027,0.00130867,95525.0,95508.0,0.09184282]
[1735247451028,0.00130867,95525.0,95514.0,0.209393]
[1735247451228,0.000517,95526.0,95522.0,0.209373]
[1735247452308,0.001,95525.0,95522.0,0.209373]
[1735247452509,0.001,95525.0,95515.0,0.18368564]
[1735247452721,0.00130855,95524.0,95515.0,0.09184282]
[1735247452971,0.000517,95526.0,95515.0,0.09184282]
[1735247453217,0.10650332,95526.0,95515.0,0.09184282]
[1735247453414,0.011959,95525.0,95515.0,0.09184282]
[1735247453613,0.011959,95525.0,95515.0,0.18568564]
[1735247453770,0.011959,95525.0,95515.0,0.13077514]
[1735247453975,0.00130867,95525.0,95515.0,0.13077514]
[1735247454370,0.00130867,95525.0,95516.0,0.209389]
[1735247454578,0.00130867,95525.0,95515.0,0.13077514]
[1735247454927,0.00230867,95525.0,95515.0,0.13077514]
[1735247455565,0.00330867,95525.0,95515.0,0.13077514]
[1735247456803,0.002,95525.0,95516.0,0.209389]
[1735247457419,0.00130866,95524.0,95516.0,0.209389]
[1735247457628,0.00330866,95525.0,95516.0,0.209389]
[1735247457946,0.00230866,95525.0,95516.0,0.209389]
[1735247458160,0.0001714,95525.0,95516.0,0.209389]
[1735247458362,0.00148006,95525.0,95516.0,0.210389]
[1735247458946,0.00148006,95525.0,95516.0,0.001]
[1735247459679,0.00148006,95525.0,95516.0,0.210389]
[1735247460499,0.00148006,95525.0,95516.0,0.001]
[1735247460500,0.0120784,95525.0,95516.0,0.001]
[1735247461442,0.00148006,95525.0,95517.0,0.209386]
[1735247461588,0.00148006,95525.0,95519.0,0.09342239]
[1735247461814,0.0001714,95525.0,95524.0,0.209371]
[1735247463193,0.0001714,95525.0,95524.0,0.210371]
[1735247463999,0.0001714,95525.0,95524.0,0.02020162]
[1735247464276,0.0001714,95525.0,95523.0,0.13955157]
[1735247464696,0.0001714,95525.0,95523.0,0.0940725]
[1735247464897,0.0001714,95525.0,95524.0,0.001]
[1735247466331,0.0001714,95525.0,95520.0,0.01979538]
[1735247466675,0.0021714,95525.0,95515.0,0.09192852]
[1735247467248,0.0031714,95525.0,95516.0,0.209389]
[1735247467462,0.0031714,95525.0,95515.0,0.11182053]
[1735247467463,0.00130866,95524.0,95515.0,0.11182053]
[1735247468124,0.0011714,95525.0,95517.0,0.209386]
[1735247468762,0.0011714,95525.0,95517.0,0.136386]
[1735247468964,0.0011714,95525.0,95515.0,0.11182053]
[1735247469178,0.0021714,95525.0,95521.0,0.418753]
[1735247469390,0.0031714,95525.0,95523.0,0.209373]
[1735247469589,0.0011714,95525.0,95524.0,0.1997]
[1735247469795,0.0021714,95525.0,95524.0,0.1997]
[1735247470202,0.0011714,95525.0,95524.0,0.1997]
[1735247470419,0.0021714,95525.0,95524.0,0.1997]
[1735247470667,0.00130833,95554.0,95524.0,0.30368632]
[1735247470888,0.00015501,95555.0,95542.0,0.228]
[1735247471090,0.00015501,95555.0,95554.0,0.209305]
[1735247472559,0.00115501,95555.0,95554.0,0.209305]
[1735247472730,0.00015501,95555.0,95554.0,0.209305]
[1735247473211,0.00115501,95555.0,95554.0,0.213305]
[1735247474345,0.00115501,95555.0,95554.0,0.23155473]
[1735247475581,0.00935051,95555.0,95554.0,0.23155473]
[1735247475974,0.00115501,95555.0,95554.0,0.23155473]
[1735247476396,0.00015501,95555.0,95554.0,0.22755473]
[1735247476608,0.15314133,95555.0,95554.0,0.004]
[1735247476983,0.15314133,95555.0,95546.0,0.01830723]
[1735247477205,0.10529462,95554.0,95545.0,0.09184282]
[1735247477407,0.01544496,95553.0,95545.0,0.09184282]
[1735247477686,0.0768,95551.0,95545.0,0.09184282]
[1735247477881,0.10529463,95550.0,95545.0,0.09184282]
[1735247478930,0.10529463,95550.0,95519.0,0.09400652]
[1735247478931,0.10529463,95550.0,95530.0,0.09184282]
[1735247480142,0.11429463,95550.0,95540.0,0.09184282]
[1735247480511,0.12029463,95550.0,95540.0,0.09184282]
[1735247480801,0.11429463,95550.0,95540.0,0.09184282]
[1735247480986,0.10529463,95550.0,95540.0,0.09184282]
[1735247481193,0.10929463,95550.0,95540.0,0.09184282]
[1735247481399,0.02352496,95549.0,95537.0,0.01750684]
[1735247481605,0.10529477,95548.0,95530.0,0.09184282]
[1735247482386,0.0768,95547.0,95530.0,0.09184282]
[1735247482584,0.10529483,95546.0,95530.0,0.09184282]
[1735247482783,0.02096198,95545.0,95530.0,0.09184282]
[1735247482991,0.10529483,95544.0,95530.0,0.09184282]
[1735247484017,0.10529483,95544.0,95530.0,0.01884282]
[1735247484214,0.10929483,95544.0,95530.0,0.01884282]
[1735247485587,0.11729483,95544.0,95530.0,0.01884282]
[1735247487353,0.012,95544.0,95530.0,0.01884282]
[1735247487595,0.00130839,95543.0,95530.0,0.01884282]
[1735247487797,0.0013084,95542.0,95530.0,0.01884282]
[1735247488206,0.0013084,95542.0,95535.0,0.209345]
[1735247488445,0.0013084,95542.0,95532.0,0.209353]
[1735247488761,0.00130839,95541.0,95532.0,0.136353]
[1735247488967,0.00130839,95543.0,95530.0,0.01884282]
[1735247489440,0.00821084,95542.0,95530.0,0.01884282]
[1735247489656,0.00130839,95541.0,95530.0,0.01884282]
[1735247490940,0.00330839,95541.0,95530.0,0.01884282]
[1735247491899,0.00630839,95541.0,95530.0,0.01884282]
[1735247492103,0.005,95541.0,95530.0,0.01884282]
[1735247492306,0.00831084,95540.0,95530.0,0.01884282]
[1735247493072,0.10529471,95539.0,95530.0,0.01884282]
[1735247493958,0.10529471,95539.0,95529.0,0.09184282]
[1735247494371,0.10629471,95539.0,95529.0,0.09184282]
[1735247494904,0.1264,95538.0,95529.0,0.09184282]
[1735247495090,0.12725536,95537.0,95526.0,8.56e-05]
[1735247495491,0.1052948,95537.0,95527.0,0.09184282]
[1735247496659,0.1112948,95537.0,95527.0,0.09184282]
[1735247496868,0.1072948,95537.0,95527.0,0.09184282]
[1735247497309,0.1052948,95537.0,95527.0,0.09184282]
[1735247497691,0.1072948,95537.0,95527.0,0.09184282]
[1735247498009,0.11802428,95537.0,95527.0,0.09184282]
[1735247498151,0.12102428,95537.0,95527.0,0.09184282]
[1735247499137,0.1102948,95537.0,95527.0,0.01884282]
[1735247500790,0.1102948,95537.0,95526.0,8.56e-05]
[1735247501419,0.1102948,95537.0,95527.0,0.09184282]
[1735247502374,0.1052948,95537.0,95527.0,0.09184282]
[1735247502789,0.1102948,95537.0,95527.0,0.09184282]
[1735247503270,0.1112948,95537.0,95527.0,0.09184282]
[1735247503494,0.12242428,95537.0,95527.0,0.09184282]
[1735247503677,0.12442428,95537.0,95527.0,0.09184282]
[1735247503904,0.12442428,95537.0,95527.0,0.01884282]
[1735247505387,0.1132948,95537.0,95527.0,0.01884282]
[1735247505636,0.1132948,95537.0,95528.0,0.209362]
[1735247506642,0.1112948,95537.0,95528.0,0.209362]
[1735247506851,0.1132948,95537.0,95528.0,0.209362]
[1735247507048,0.1102948,95537.0,95528.0,0.209362]
[1735247507250,0.1072948,95537.0,95527.0,0.01884282]
[1735247507419,0.1072948,95537.0,95527.0,0.01892842]
[1735247507824,0.1210414,95537.0,95527.0,0.01892842]
[1735247508535,0.1160414,95537.0,95527.0,0.01892842]
[1735247508723,0.1180414,95537.0,95527.0,0.01892842]
[1735247508940,0.1180414,95537.0,95527.0,0.09184282]
[1735247509355,0.1210414,95537.0,95527.0,0.09184282]
[1735247509559,0.01212126,95536.0,95527.0,0.09184282]
[1735247509698,0.10529489,95535.0,95521.0,0.209377]
[1735247511709,0.10829489,95535.0,95521.0,0.209377]
[1735247511864,0.10929489,95535.0,95521.0,0.209377]
[1735247512058,0.12145363,95535.0,95521.0,0.209377]
[1735247512292,0.12145363,95535.0,95521.0,0.204377]
[1735247512484,0.11745363,95535.0,95521.0,0.204377]
[1735247512670,0.12345363,95535.0,95521.0,0.204377]
[1735247513069,0.11129489,95535.0,95521.0,0.204377]
[1735247513276,0.11129489,95535.0,95521.0,0.413754]
[1735247513495,0.11129489,95535.0,95525.0,0.209368]
[1735247513904,0.11129489,95535.0,95520.0,0.18368564]